fUSD/lending_fUSD_20250811
["ID","MTS","AMOUNT","RATE_DAILY","PERIOD"]
[378554203,1754911867367,-1851.77,0.000169,2]
[378554204,1754911867377,-151.0,0.00016901,2]
[378554205,1754911867387,-151.0,0.00016901,2]
[378554206,1754911867396,-1278.286218,0.00016901,2]
[378554207,1754911867406,-1278.286218,0.00016901,2]
[378554208,1754911867415,-400.0,0.00016901,2]
[378554209,1754911867426,-216.66215741,0.00016901,2]
[378554210,1754911867435,-900.545503,0.00016901,2]
[378554211,1754911867445,-1182.126922,0.00016901,2]
[378554212,1754911867454,-151.0,0.00016901,2]
[378554213,1754911867463,-1182.126922,0.00016901,2]
[378554214,1754911867473,-900.545503,0.00016901,2]
[378554215,1754911867482,-1182.126922,0.00016901,2]
[378554216,1754911867494,-151.0,0.00016901,2]
[378554217,1754911867509,-1182.126922,0.00016901,2]
[378554219,1754911867519,-400.0,0.00016901,2]
[378554221,1754911867528,-400.0,0.00016901,2]
[378554223,1754911867537,-402.752787,0.00016901,2]
[378554224,1754911867547,-402.752787,0.00016901,2]
[378554227,1754911867557,-261.57794337,0.00016901,2]
[378554228,1754911867567,-698.232335,0.00016901,2]
[378554230,1754911867576,-698.232335,0.00016901,2]
[378554232,1754911867585,-400.0,0.00016901,2]
[378554234,1754911867596,-150.0,0.00016901,2]
[378554236,1754911867605,-698.232335,0.00016901,2]
[378554238,1754911867615,-698.232335,0.00016901,2]
[378554240,1754911867624,-462.7108225,0.00016901,2]
[378554242,1754911867634,-619.04,0.00016901,2]
[378554244,1754911867643,-524.84,0.00016901,2]
[378554246,1754911867652,-536.86,0.00016901,2]
[378554248,1754911867662,-400.0,0.00016901,2]
[378554250,1754911867671,-400.0,0.00016901,2]
[378554252,1754911867681,-400.0,0.00016901,2]
[378554254,1754911867690,-400.0,0.00016901,2]
[378554256,1754911867699,-1153.29,0.00016901,2]
[378554258,1754911867709,-538.25,0.00016901,2]
[378554260,1754911867718,-400.0,0.00016901,2]
[378554262,1754911867728,-400.0,0.00016901,2]
[378554265,1754911867737,-400.0,0.00016901,2]
[378554267,1754911867747,-400.0,0.00016901,2]
[378554269,1754911867756,-400.0,0.00016901,2]
[378554271,1754911867766,-400.0,0.00016901,2]
[378554273,1754911867776,-746.01,0.00016901,2]
[378554275,1754911867785,-400.0,0.00016901,2]
[378554277,1754911867794,-400.0,0.00016901,2]
[378554279,1754911867804,-764.26,0.00016901,2]
[378554281,1754911867814,-400.0,0.00016901,2]
[378554283,1754911867827,-400.0,0.00016901,2]
[378554285,1754911867838,-172.93808659,0.00016901,2]
[378554287,1754911867847,-708.49,0.00016901,2]
[378554289,1754911867857,-400.0,0.00016901,2]
[378554291,1754911867867,-400.0,0.00016901,2]
[378554293,1754911867876,-428.7,0.00016901,2]
[378554295,1754911867886,-400.0,0.00016901,2]
[378554297,1754911867895,-400.0,0.00016901,2]
[378554299,1754911867906,-783.5,0.00016901,2]
[378554300,1754911867916,-614.57,0.00016901,2]
[378554302,1754911867927,-400.0,0.00016901,2]
[378554304,1754911867937,-400.0,0.00016901,2]
[378554306,1754911867946,-566.77,0.00016901,2]
[378554308,1754911867955,-424.77,0.00016901,2]
[378554310,1754911867964,-400.0,0.00016901,2]
[378554312,1754911867974,-409.95,0.00016901,2]
[378554314,1754911867983,-400.0,0.00016901,2]
[378554316,1754911867992,-400.0,0.00016901,2]
[378554318,1754911868002,-400.0,0.00016901,2]
[378554319,1754911868011,-1226.0,0.00016901,2]
[378554320,1754911868020,-400.0,0.00016901,2]
[378554321,1754911868030,-489.56,0.00016901,2]
[378554322,1754911868039,-401.7120896,0.00016901,2]
[378554323,1754911868048,-400.0,0.00016901,2]
[378554324,1754911868057,-400.0,0.00016901,2]
[378554325,1754911868066,-400.0,0.00016901,2]
[378554326,1754911868076,-400.0,0.00016901,2]
[378554327,1754911868085,-506.3360216,0.00016901,2]
[378554328,1754911868096,-400.0,0.00016901,2]
[378554329,1754911868105,-554.25,0.00016901,2]
[378554330,1754911868115,-739.21,0.00016901,2]
[378554331,1754911868124,-400.0,0.00016901,2]
[378554332,1754911868134,-400.7984303,0.00016901,2]
[378554333,1754911868144,-888.11,0.00016901,2]
[378554334,1754911868153,-400.0,0.00016901,2]
[378554335,1754911868162,-400.0,0.00016901,2]
[378554336,1754911868171,-400.0,0.00016901,2]
[378554337,1754911868180,-559.74,0.00016901,2]
[378554338,1754911868190,-400.0,0.00016901,2]
[378554339,1754911868199,-400.0,0.00016901,2]
[378554340,1754911868209,-400.0,0.00016901,2]
[378554341,1754911868218,-400.0,0.00016901,2]
[378554342,1754911868228,-385.89384972,0.00016901,2]
[378554343,1754911868237,-400.0,0.00016901,2]
[378554344,1754911868247,-400.0,0.00016901,2]
[378554345,1754911868256,-400.0,0.00016901,2]
[378554346,1754911868268,-400.0,0.00016901,2]
[378554347,1754911868277,-400.0,0.00016901,2]
[378554348,1754911868286,-400.0,0.00016901,2]
[378554349,1754911868295,-400.0,0.00016901,2]
[378554350,1754911868305,-636.56,0.00016901,2]
[378554351,1754911868315,-400.0,0.00016901,2]
[378554352,1754911868324,-400.0,0.00016901,2]
[378554353,1754911868334,-531.71,0.00016901,2]
[378554354,1754911868345,-400.0,0.00016901,2]
[378554355,1754911868354,-504.51244749,0.00016901,2]
[378554356,1754911868363,-400.0,0.00016901,2]
[378554357,1754911868372,-403.20228706,0.00016901,2]
[378554358,1754911868381,-997.36,0.00016901,2]
[378554359,1754911868391,-400.0,0.00016901,2]
[378554360,1754911868400,-408.71,0.00016901,2]
[378554361,1754911868410,-1153.57,0.00016901,2]
[378554362,1754911868419,-400.0,0.00016901,2]
[378554363,1754911868429,-400.95360698,0.00016901,2]
[378554364,1754911868439,-400.0,0.00016901,2]
[378554365,1754911868449,-400.0,0.00016901,2]
[378554366,1754911868458,-400.0,0.00016901,2]
[378554367,1754911868469,-400.0,0.00016901,2]
[378554368,1754911868479,-400.0,0.00016901,2]
[378554369,1754911868489,-400.0,0.00016901,2]
[378554370,1754911868497,-400.0,0.00016901,2]
[378554371,1754911868507,-400.0,0.00016901,2]
[378554372,1754911868517,-400.0,0.00016901,2]
[378554373,1754911868527,-400.31164988,0.00016901,2]
[378554374,1754911868536,-400.0,0.00016901,2]
[378554375,1754911868545,-526.78,0.00016901,2]
[378554376,1754911868656,-400.0,0.00016901,2]
[378554377,1754911868665,-400.0,0.00016901,2]
[378554378,1754911868675,-500.0,0.00016901,2]
[378554379,1754911868684,-400.0,0.00016901,2]
[378554380,1754911868693,-500.0,0.00016901,2]
[378554381,1754911868702,-400.0,0.00016901,2]
[378554382,1754911868711,-691.28,0.00016901,2]
[378554383,1754911868720,-400.0,0.00016901,2]
[378554384,1754911868729,-400.0,0.00016901,2]
[378554385,1754911868739,-400.0,0.00016901,2]
[378554386,1754911868748,-527.49164501,0.00016901,2]
[378554387,1754911868757,-523.46,0.00016901,2]
[378554388,1754911868767,-863.89,0.00016901,2]
[378554389,1754911868776,-400.0,0.00016901,2]
[378554390,1754911868785,-400.0,0.00016901,2]
[378554391,1754911868795,-400.0,0.00016901,2]
[378554392,1754911868804,-400.0,0.00016901,2]
[378554393,1754911868813,-400.0,0.00016901,2]
[378554394,1754911868826,-400.0,0.00016901,2]
[378554395,1754911868837,-400.0,0.00016901,2]
[378554396,1754911868848,-400.0,0.00016901,2]
[378554397,1754911868857,-400.0,0.00016901,2]
[378554398,1754911868867,-400.0,0.00016901,2]
[378554399,1754911868877,-400.0,0.00016901,2]
[378554400,1754911868887,-660.87,0.00016901,2]
[378554401,1754911868897,-400.0,0.00016901,2]
[378554402,1754911868907,-400.0,0.00016901,2]
[378554403,1754911868917,-400.0,0.00016901,2]
[378554404,1754911868927,-3528.785897,0.00016901,2]
[378554405,1754911868937,-602.6,0.00016901,2]
[378554406,1754911868946,-779.56,0.00016901,2]
[378554407,1754911868955,-400.0,0.00016901,2]
[378554408,1754911868964,-637.76,0.00016901,2]
[378554409,1754911868974,-3528.785897,0.00016901,2]
[378554410,1754911868983,-745.37,0.00016901,2]
[378554411,1754911868992,-785.55,0.00016901,2]
[378554412,1754911869001,-402.87478159,0.00016901,2]
[378554413,1754911869011,-400.0,0.00016901,2]
[378554414,1754911869020,-400.0,0.00016901,2]
[378554415,1754911869029,-400.0,0.00016901,2]
[378554416,1754911869038,-645.84,0.00016901,2]
[378554417,1754911869047,-400.0,0.00016901,2]
[378554418,1754911869057,-400.0,0.00016901,2]
[378554419,1754911869066,-747.24,0.00016901,2]
[378554420,1754911869075,-400.0,0.00016901,2]
[378554421,1754911869085,-400.0,0.00016901,2]
[378554422,1754911869096,-400.0,0.00016901,2]
[378554423,1754911869105,-400.0,0.00016901,2]
[378554424,1754911869114,-400.0,0.00016901,2]
[378554425,1754911869125,-595.06,0.00016901,2]
[378554426,1754911869134,-400.0,0.00016901,2]
[378554427,1754911869143,-400.0,0.00016901,2]
[378554428,1754911869153,-400.0,0.00016901,2]
[378554429,1754911869161,-400.0,0.00016901,2]
[378554430,1754911869171,-483.55,0.00016901,2]
[378554431,1754911869181,-400.0,0.00016901,2]
[378554432,1754911869190,-400.0,0.00016901,2]
[378554433,1754911869199,-705.61,0.00016901,2]
[378554434,1754911869209,-400.0,0.00016901,2]
[378554435,1754911869219,-400.0,0.00016901,2]
[378554436,1754911869228,-400.0,0.00016901,2]
[378554437,1754911869237,-918.96,0.00016901,2]
[378554438,1754911869246,-400.0,0.00016901,2]
[378554439,1754911869256,-630.17,0.00016901,2]
[378554440,1754911869265,-402.53205313,0.00016901,2]
[378554441,1754911869275,-459.03,0.00016901,2]
[378554442,1754911869284,-400.0,0.00016901,2]
[378554443,1754911869294,-287.41,0.00016901,2]
[378554444,1754911869304,-393.5597697,0.00016901,2]
[378554445,1754911869313,-713.03,0.00016901,2]
[378554446,1754911869323,-400.0,0.00016901,2]
[378554447,1754911869333,-400.0,0.00016901,2]
[378554448,1754911869346,-427.23234058,0.00016901,2]
[378554449,1754911869355,-400.0,0.00016901,2]
[378554450,1754911869365,-400.0,0.00016901,2]
[378554451,1754911869375,-394.63536898,0.00016901,2]
[378554452,1754911869385,-400.0,0.00016901,2]
[378554453,1754911869395,-500.0,0.00016901,2]
[378554454,1754911869404,-400.0,0.00016901,2]
[378554455,1754911869413,-827.62,0.00016901,2]
[378554456,1754911869423,-461.78,0.00016901,2]
[378554457,1754911869432,-1129.07,0.00016901,2]
[378554458,1754911869441,-541.67,0.00016901,2]
[378554459,1754911869451,-495.53,0.00016901,2]
[378554460,1754911869461,-400.0,0.00016901,2]
[378554461,1754911869470,-400.0,0.00016901,2]
[378554462,1754911869479,-620.07,0.00016901,2]
[378554463,1754911869488,-450.0,0.00016901,2]
[378554464,1754911869497,-400.0,0.00016901,2]
[378554465,1754911869507,-400.0,0.00016901,2]
[378554466,1754911869517,-400.0,0.00016901,2]
[378554467,1754911869527,-400.0,0.00016901,2]
[378554468,1754911869535,-400.0,0.00016901,2]
[378554469,1754911869545,-722.1,0.00016901,2]
[378554470,1754911869554,-400.0,0.00016901,2]
[378554471,1754911869563,-400.0,0.00016901,2]
[378554472,1754911869572,-400.0,0.00016901,2]
[378554473,1754911869581,-400.0,0.00016901,2]
[378554474,1754911869591,-474.24,0.00016901,2]
[378554475,1754911869600,-808.11,0.00016901,2]
[378554476,1754911869609,-400.0,0.00016901,2]
[378554477,1754911869618,-400.0,0.00016901,2]
[378554478,1754911869627,-400.0,0.00016901,2]
[378554479,1754911869637,-946.509576,0.00016901,2]
[378554480,1754911869646,-400.0,0.00016901,2]
[378554481,1754911869656,-1524.71,0.00016901,2]
[378554482,1754911869665,-887.49,0.00016901,2]
[378554483,1754911869675,-946.509576,0.00016901,2]
[378554484,1754911869684,-526.04,0.00016901,2]
[378554485,1754911869694,-400.0,0.00016901,2]
[378554486,1754911869703,-641.68,0.00016901,2]
[378554487,1754911869712,-400.0,0.00016901,2]
[378554488,1754911869722,-400.0,0.00016901,2]
[378554489,1754911869731,-508.11,0.00016901,2]
[378554490,1754911869740,-539.61,0.00016901,2]
[378554491,1754911869750,-410.9,0.00016901,2]
[378554492,1754911869759,-457.74,0.00016901,2]
[378554493,1754911869769,-400.0,0.00016901,2]
[378554494,1754911869778,-400.0,0.00016901,2]
[378554495,1754911869787,-348.54020992,0.00016901,2]
[378554496,1754911869797,-941.4,0.00016901,2]
[378554497,1754911869807,-485.5,0.00016901,2]
[378554498,1754911869816,-751.26,0.00016901,2]
[378554499,1754911869829,-400.0,0.00016901,2]
[378554500,1754911869838,-886.93,0.00016901,2]
[378554501,1754911869849,-400.0,0.00016901,2]
[378554502,1754911869859,-400.0,0.00016901,2]
[378554503,1754911869869,-400.0,0.00016901,2]
[378554504,1754911869878,-400.0,0.00016901,2]
[378554505,1754911869887,-400.0,0.00016901,2]
[378554506,1754911869904,-400.0,0.00016901,2]
[378554507,1754911869921,-400.0,0.00016901,2]
[378554508,1754911869931,-400.0,0.00016901,2]
[378554509,1754911869941,-543.71,0.00016901,2]
[378554510,1754911869950,-400.0,0.00016901,2]
[378554511,1754911869959,-400.0,0.00016901,2]
[378554512,1754911869969,-838.94,0.00016901,2]
[378554513,1754911869978,-400.0,0.00016901,2]
[378554514,1754911869987,-701.79,0.00016901,2]
[378554515,1754911869997,-500.0,0.00016901,2]
[378554516,1754911870006,-400.0,0.00016901,2]
[378554517,1754911870016,-1000.0,0.00016901,2]
[378554518,1754911870025,-1251.34,0.00016901,2]
[378554519,1754911870034,-400.0,0.00016901,2]
[378554520,1754911870044,-400.0,0.00016901,2]
[378554521,1754911870054,-400.0,0.00016901,2]
[378554522,1754911870063,-400.0,0.00016901,2]
[378554523,1754911870072,-422.50218525,0.00016901,2]
[378554524,1754911870082,-608.55,0.00016901,2]
[378554525,1754911870091,-151.0,0.00016901,2]
[378554526,1754911870101,-792.6,0.00016901,2]
[378554527,1754911870110,-400.0,0.00016901,2]
[378554528,1754911870119,-400.0,0.00016901,2]
[378554529,1754911870129,-906.2,0.00016901,2]
[378554530,1754911870138,-400.0,0.00016901,2]
[378554531,1754911870147,-571.08,0.00016901,2]
[378554532,1754911870156,-400.0,0.00016901,2]
[378554533,1754911870165,-400.0,0.00016901,2]
[378554534,1754911870175,-400.0,0.00016901,2]
[378554535,1754911870184,-500.0,0.00016901,2]
[378554536,1754911870194,-400.0,0.00016901,2]
[378554537,1754911870203,-555.79,0.00016901,2]
[378554538,1754911870214,-534.12,0.00016901,2]
[378554539,1754911870223,-1236.25,0.00016901,2]
[378554540,1754911870233,-400.0,0.00016901,2]
[378554541,1754911870243,-445.24,0.00016901,2]
[378554542,1754911870252,-553.05,0.00016901,2]
[378554543,1754911870261,-400.0,0.00016901,2]
[378554544,1754911870270,-400.0,0.00016901,2]
[378554545,1754911870280,-400.0,0.00016901,2]
[378554546,1754911870289,-400.0,0.00016901,2]
[378554547,1754911870298,-400.0,0.00016901,2]
[378554548,1754911870308,-400.0,0.00016901,2]
[378554549,1754911870317,-105.88816439,0.00016901,2]
[378554550,1754911870522,-321.25183561,0.00016901,2]
[378554551,1754911870532,-400.0,0.00016901,2]
[378554552,1754911870541,-400.0,0.00016901,2]
[378554553,1754911870551,-400.0,0.00016901,2]
[378554554,1754911870560,-459.07495627,0.00016901,2]
[378554555,1754911870569,-400.0,0.00016901,2]
[378554556,1754911870579,-400.0,0.00016901,2]
[378554557,1754911870588,-400.0,0.00016901,2]
[378554558,1754911870598,-400.0,0.00016901,2]
[378554559,1754911870607,-400.0,0.00016901,2]
[378554560,1754911870616,-462.06578045,0.00016901,2]
[378554561,1754911870625,-636.21,0.00016901,2]
[378554562,1754911870636,-289.14192334,0.00016901,2]
[378554563,1754911870645,-1325.09,0.00016901,2]
[378554564,1754911870654,-400.0,0.00016901,2]
[378554565,1754911870663,-400.0,0.00016901,2]
[378554566,1754911870672,-400.0,0.00016901,2]
[378554567,1754911870681,-400.0,0.00016901,2]
[378554568,1754911870691,-400.0,0.00016901,2]
[378554569,1754911870700,-721.95,0.00016901,2]
[378554570,1754911870710,-400.0,0.00016901,2]
[378554571,1754911870719,-400.0,0.00016901,2]
[378554572,1754911870729,-400.0,0.00016901,2]
[378554573,1754911870738,-810.82,0.00016901,2]
[378554574,1754911870748,-400.0,0.00016901,2]
[378554575,1754911870757,-400.0,0.00016901,2]
[378554576,1754911870766,-400.0,0.00016901,2]
[378554577,1754911870775,-400.0,0.00016901,2]
[378554578,1754911870786,-493.41,0.00016901,2]
[378554579,1754911870796,-400.0,0.00016901,2]
[378554580,1754911870805,-400.0,0.00016901,2]
[378554581,1754911870815,-400.0,0.00016901,2]
[378554582,1754911870827,-400.0,0.00016901,2]
[378554583,1754911870837,-400.0,0.00016901,2]
[378554584,1754911870847,-488.9,0.00016901,2]
[378554585,1754911870857,-400.0,0.00016901,2]
[378554586,1754911870868,-400.0,0.00016901,2]
[378554587,1754911870878,-400.0,0.00016901,2]
[378554588,1754911870888,-400.0,0.00016901,2]
[378554589,1754911870898,-400.0,0.00016901,2]
[378554590,1754911870908,-788.21989305,0.00016901,2]
[378554591,1754911870920,-2121.22010695,0.00016901,2]
[378554592,1754911870930,-400.0,0.00016901,2]
[378554593,1754911870940,-142.77989305,0.00016901,2]
[378554594,1754911870952,-1108.34930995,0.00016901,2]
[378554595,1754911870961,-805.11142555,0.00016901,2]
[378554596,1754911870979,-446.01777745,0.00016901,2]
[378554597,1754911870989,-400.0,0.00016901,2]
[378554598,1754911870998,-586.06,0.00016901,2]
[378554599,1754911871008,-400.0,0.00016901,2]
[378554600,1754911871018,-400.0,0.00016901,2]
[378554601,1754911871028,-486.30021673,0.00016901,2]
[378554602,1754911871037,-400.0,0.00016901,2]
[378554603,1754911871046,-400.0,0.00016901,2]
[378554604,1754911871056,-926.91,0.00016901,2]
[378554605,1754911871066,-586.841379,0.00016901,2]
[378554606,1754911871075,-529.45,0.00016901,2]
[378554607,1754911871084,-400.0,0.00016901,2]
[378554608,1754911871094,-922.34,0.00016901,2]
[378554609,1754911871103,-586.841379,0.00016901,2]
[378554610,1754911871113,-400.0,0.00016901,2]
[378554611,1754911871122,-400.0,0.00016901,2]
[378554612,1754911871131,-400.0,0.00016901,2]
[378554613,1754911871140,-522.67017114,0.00016901,2]
[378554614,1754911871150,-400.0,0.00016901,2]
[378554615,1754911871160,-400.0,0.00016901,2]
[378554616,1754911871169,-400.0,0.00016901,2]
[378554617,1754911871179,-151.0,0.00016901,2]
[378554618,1754911871188,-473.98,0.00016901,2]
[378554619,1754911871197,-400.0,0.00016901,2]
[378554620,1754911871207,-253.025146,0.00016901,2]
[378554621,1754911871217,-400.0,0.00016901,2]
[378554622,1754911871226,-873.95,0.00016901,2]
[378554623,1754911871235,-400.0,0.00016901,2]
[378554624,1754911871245,-400.0,0.00016901,2]
[378554625,1754911871257,-400.0,0.00016901,2]
[378554626,1754911871267,-400.0,0.00016901,2]
[378554627,1754911871276,-400.0,0.00016901,2]
[378554628,1754911871285,-400.0,0.00016901,2]
[378554629,1754911871295,-500.0,0.00016901,2]
[378554630,1754911871307,-469.94486207,0.00016901,2]
[378554631,1754911871318,-400.0,0.00016901,2]
[378554632,1754911871327,-402.81289146,0.00016901,2]
[378554633,1754911871337,-400.0,0.00016901,2]
[378554634,1754911871348,-400.0,0.00016901,2]
[378554635,1754911871357,-400.0,0.00016901,2]
[378554636,1754911871367,-432.46,0.00016901,2]
[378554637,1754911871377,-796.28,0.00016901,2]
[378554638,1754911871387,-400.0,0.00016901,2]
[378554639,1754911871397,-404.08744981,0.00016901,2]
[378554640,1754911871407,-400.0,0.00016901,2]
[378554641,1754911871416,-400.0,0.00016901,2]
[378554642,1754911871425,-400.0,0.00016901,2]
[378554643,1754911871434,-725.46,0.00016901,2]
[378554644,1754911871444,-540.57,0.00016901,2]
[378554645,1754911871453,-1005.95,0.00016901,2]
[378554646,1754911871464,-400.0,0.00016901,2]
[378554647,1754911871473,-400.0,0.00016901,2]
[378554648,1754911871483,-320.95169009,0.00016901,2]
[378554649,1754911871491,-173.61570609,0.00016901,2]
[378554650,1754911871501,-400.0,0.00016901,2]
[378554651,1754911871510,-400.0,0.00016901,2]
[378554652,1754911871520,-439.2,0.00016901,2]
[378554653,1754911871529,-233.56546504,0.00016901,2]
[378554654,1754911871538,-415.16,0.00016901,2]
[378554655,1754911871547,-400.0,0.00016901,2]
[378554656,1754911871556,-400.0,0.00016901,2]
[378554657,1754911871565,-532.84,0.00016901,2]
[378554658,1754911871574,-755.29,0.00016901,2]
[378554660,1754911871584,-432.24342995,0.00016901,2]
[378554661,1754911871596,-400.0,0.00016901,2]
[378554662,1754911871606,-459.63,0.00016901,2]
[378554663,1754911871615,-925.51,0.00016901,2]
[378554664,1754911871625,-400.0,0.00016901,2]
[378554665,1754911871635,-400.0,0.00016901,2]
[378554666,1754911871644,-400.0,0.00016901,2]
[378554667,1754911871654,-400.0,0.00016901,2]
[378554668,1754911871664,-1079.1,0.00016901,2]
[378554669,1754911871673,-14.13096188,0.00016901,2]
[378554670,1754911871686,-385.86903812,0.00016901,2]
[378554671,1754911871696,-647.05,0.00016901,2]
[378554672,1754911871705,-500.44,0.00016901,2]
[378554673,1754911871714,-1253.107716,0.00016901,2]
[378554674,1754911871723,-843.38,0.00016901,2]
[378554675,1754911871733,-10000.0,0.00016901,2]
[378554676,1754911871742,-400.0,0.00016901,2]
[378554677,1754911871751,-406.21,0.00016901,2]
[378554678,1754911871761,-1253.107716,0.00016901,2]
[378554679,1754911871771,-1150.74,0.00016901,2]
[378554680,1754911871780,-10000.0,0.00016901,2]
[378554681,1754911871789,-959.19,0.00016901,2]
[378554682,1754911871799,-400.0,0.00016901,2]
[378554683,1754911871809,-741.06,0.00016901,2]
[378554684,1754911871820,-400.0,0.00016901,2]
[378554685,1754911871831,-10000.0,0.00016901,2]
[378554686,1754911871840,-400.0,0.00016901,2]
[378554687,1754911871850,-2342.84552992,0.00016901,2]
[378554688,1754911871862,-1176.35447008,0.00016901,2]
[378554689,1754911871872,-400.0,0.00016901,2]
[378554690,1754911871881,-400.0,0.00016901,2]
[378554691,1754911871890,-352.8778297,0.00016901,2]
[378554733,1754911945176,170.0,0.00015813,7]
[378554759,1754911997182,-334.46572486,0.00015573,2]
[378554760,1754911999190,-181.53427514,0.00015573,2]
[378554761,1754911999218,-152.850612,0.00015573,2]
[378554762,1754912010965,320.0,0.00024,120]
[378554764,1754912052308,179.94,0.00012563,2]
[378554772,1754912237391,352.0,0.000143,2]
[378554776,1754912312741,-192.33151336,0.00015402,2]
[378554777,1754912357203,-250.0,0.00015341,2]
[378554778,1754912357223,-18.0,0.0001538,2]
[378554779,1754912358647,-158.27,0.00015303,2]
[378554780,1754912360757,-228.9700796,0.00015303,2]
[378554781,1754912362304,-170.0,0.00015303,2]
[378554782,1754912364276,-292.0299204,0.00015303,2]
[378554783,1754912365734,-29.141712,0.00015303,2]
[378554784,1754912365756,-164.23201175,0.0001538,2]
[378554785,1754912365778,-97.90739576,0.00015405,2]
[378554786,1754912387140,-151.0,0.00015385,2]
[378554790,1754912417728,-89.92,0.00015385,2]
[378554791,1754912417752,-68.57260424,0.00015405,2]
[378554792,1754912417774,-98.94152469,0.0001548,2]
[378554794,1754912419674,-246.05847531,0.0001548,2]
[378554795,1754912419699,-33.05505786,0.00015532,2]
[378554796,1754912421453,-151.0,0.00015532,2]
[378554797,1754912423522,-170.73,0.00015532,2]
[378554798,1754912425597,-197.95705105,0.00015532,2]
[378554803,1754912477231,-217.94301724,0.00015402,2]
[378554804,1754912479148,-103.78698276,0.00015402,2]
[378554805,1754912479176,-58.39431118,0.00015454,2]
[378554806,1754912480896,-283.75303131,0.00015454,2]
[378554807,1754912482477,-362.74053215,0.00015454,2]
[378554812,1754912507228,-240.11503667,0.0001529,2]
[378554816,1754912537227,-290.82773769,0.00015213,2]
[378554817,1754912540077,-500.0,0.00015213,2]
[378554818,1754912543147,-540.17992431,0.00015213,2]
[378554819,1754912543171,-47.59496333,0.0001529,2]
[378554820,1754912543193,-2.0630925,0.00015305,2]
[378554822,1754912548687,-202.3621875,0.00015305,2]
[378554826,1754912582260,-300.0,0.00015304,2]
[378554827,1754912582282,-94.87,0.00015305,2]
[378554828,1754912585946,-372.848,0.00015305,2]
[378554829,1754912588723,-32.282,0.00015305,2]
[378554830,1754912588746,-136.328,0.00015305,2]
[378554831,1754912591325,-72.13564352,0.00015305,2]
[378554832,1754912591350,-198.93714357,0.00015305,2]
[378554833,1754912591372,-28.92721291,0.00015305,2]
[378554834,1754912592818,-151.0,0.00015305,2]
[378554835,1754912592914,-115.79489586,0.00015305,2]
[378554836,1754912592941,-500.0,0.00015305,2]
[378554837,1754912595776,-155.13,0.00015305,2]
[378554839,1754912600115,-44.44472,0.00015305,2]
[378554840,1754912600137,-187.07199996,0.00015305,2]
[378554841,1754912602275,-13.92800004,0.00015305,2]
[378554842,1754912602610,-171.36012585,0.00015306,2]
[378554843,1754912603991,-189.58721,0.00015306,2]
[378554844,1754912606091,-165.34147619,0.00015306,2]
[378554845,1754912608213,-235.55,0.00015306,2]
[378554846,1754912610406,771.733532,0.00015228,2]
[378554847,1754912610433,-185.70919262,0.00015306,2]
[378554848,1754912611851,-265.8723679,0.00015306,2]
[378554850,1754912615156,-216.82899129,0.00015306,2]
[378554851,1754912616682,-200.0,0.00015306,2]